[Event "Czech Juniors Boys 2024"]
[Site "Jaromerice nad Rokytnou"]
[Date "2024.03.10"]
[Round "1.1"]
[White "Jun, Rudolf"]
[Black "Lang, Simon"]
[Result "1/2-1/2"]
[ECO "C01"]
[WhiteElo "2243"]
[BlackElo "2043"]
[Annotator "ChessBase"]
[PlyCount "183"]
[EventDate "2024.03.10"]
[EventType "tourn"]
[EventCountry "CZE"]
[SourceTitle "playchess.com"]
[Source "ChessBase"]
[SourceQuality "1"]
[TimeControl "40/5400+30:1800+30"]

1. e4 {[%emt 0:00:35]} e6 {[%emt 0:00:50]} 2. d4 {[%emt 0:02:53]} d5 {[%emt 0:01:37]} 3. Nc3 {[%emt 0:00:55]} Nf6 {[%emt 0:01:31]} 4. exd5 {[%emt 0:00:12]} exd5 {[%emt 0:02:55]} 5. Nf3 {[%emt 0:00:41]} Bg4 {[%emt 0:07:50]} 6. Be2 {[%emt 0:00:36]} c6 {[%emt 0:04:21]} 7. Ne5 {[%emt 0:03:24]} Bxe2 {[%emt 0:02:03]} 8. Qxe2 {[%emt 0:00:16]} Be7 {[%emt 0:00:49]} 9. O-O {[%emt 0:00:26]} O-O {[%emt 0:00:56]} 10. Kh1 {[%emt 0:05:12]} Re8 {[%emt 0:03:13]} 11. Qd3 {[%emt 0:07:42]} Nbd7 {[%emt 0:04:27]} 12. Bg5 {[%emt 0:04:09]} Ne4 {[%emt 0:06:45]} 13. Bxe7 {[%emt 0:03:07]} Qxe7 {[%emt 0:03:10]} 14. f4 {[%emt 0:03:34]} Nxc3 {[%emt 0:06:36]} 15. bxc3 {[%emt 0:01:15]} Nb6 {[%emt 0:02:40]} 16. Qg3 {[%emt 0:11:57]} Nc4 {[%emt 0:11:41]} 17. Nxc4 {[%emt 0:04:50]} dxc4 {[%emt 0:00:06]} 18. Rae1 {[%emt 0:00:44]} Qd7 {[%emt 0:02:53]} 19. Re5 {[%emt 0:04:56]} f6 {[%emt 0:02:40]} 20. Ree1 {[%emt 0:01:24]} Rxe1 {[%emt 0:02:50]} 21. Rxe1 {[%emt 0:00:08]} Re8 {[%emt 0:00:13]} 22. h3 {[%emt 0:01:53]} Rxe1+ {[%emt 0:02:52]} 23. Qxe1 {[%emt 0:00:11]} Kf7 {[%emt 0:00:34]} 24. Qf1 {[%emt 0:01:32]} Qd5 {[%emt 0:03:33]} 25. f5 {[%emt 0:00:10]} b5 {[%emt 0:00:46]} 26. Qf4 {[%emt 0:00:28]} Qd7 {[%emt 0:00:58]} 27. Kg1 {[%emt 0:01:37]} Ke7 {[%emt 0:01:28]} 28. Kf2 {[%emt 0:01:30]} Kf7 {[%emt 0:01:58]} 29. g4 {[%emt 0:00:41]} h6 {[%emt 0:00:37]} 30. h4 {[%emt 0:01:44]} Qd8 {[%emt 0:00:37]} 31. Qg3 {[%emt 0:07:02]} Kf8 {[%emt 0:00:34]} 32. Ke3 {[%emt 0:04:20]} Kf7 {[%emt 0:01:18]} 33. Qf4 {[%emt 0:01:03]} Qe7+ {[%emt 0:01:14]} 34. Kd2 {[%emt 0:01:08]} Qd8 {[%emt 0:00:35]} 35. Kc1 {[%emt 0:03:40]} Kf8 {[%emt 0:01:52]} 36. Kb2 {[%emt 0:01:33]} Kf7 {[%emt 0:00:34]} 37. Qg3 {[%emt 0:00:45]} Kf8 {[%emt 0:03:06]} 38. Qg2 {[%emt 0:01:46]} Qd6 {[%emt 0:05:55]} 39. g5 {[%emt 0:03:42]} fxg5 {[%emt 0:01:36]} 40. hxg5 {[%emt 0:00:14]} hxg5 {[%emt 0:00:33]} 41. Qxg5 {[%emt 0:30:11]} b4 {[%emt 0:32:53]} 42. Qg6 {[%emt 0:10:26]} bxc3+ {[%emt 0:02:10]} 43. Kxc3 {[%emt 0:00:22]} Qa3+ {[%emt 0:00:31]} 44. Kd2 {[%emt 0:02:23]} Qa5+ {[%emt 0:00:00]} 45. Ke2 {[%emt 0:00:00]} Qd5 {[%emt 0:00:00]} 46. Ke3 {[%emt 0:00:00]} c5 {[%emt 0:00:00]} 47. dxc5 {[%emt 0:00:00]} Qxc5+ {[%emt 0:00:00]} 48. Ke4 {[%emt 0:00:00]} Qb4 {[%emt 0:00:00]} 49. Qe6 {[%emt 0:00:00]} Qc3 {[%emt 0:00:00]} 50. Qd6+ {[%emt 0:00:00]} Kg8 {[%emt 0:00:00]} 51. Qb8+ {[%emt 0:00:00]} Kh7 {[%emt 0:00:00]} 52. Qh2+ {[%emt 0:00:00]} Kg8 {[%emt 0:00:00]} 53. Qe2 {[%emt 0:00:00]} Kf7 {[%emt 0:00:00]} 54. Qd1 {[%emt 0:00:00]} Kf6 {[%emt 0:01:13]} 55. Qd8+ {[%emt 0:00:00]} Kf7 {[%emt 0:00:12]} 56. Qd7+ {[%emt 0:00:00]} Kf6 {[%emt 0:01:59]} 57. Qd8+ {[%emt 0:05:36]} Kf7 {[%emt 0:00:07]} 58. Qc7+ {[%emt 0:01:40]} Kf6 {[%emt 0:00:47]} 59. Qc6+ {[%emt 0:01:03]} Kf7 {[%emt 0:01:22]} 60. Qd5+ {[%emt 0:00:20]} Kf6 {[%emt 0:01:30]} 61. Qe6+ {[%emt 0:00:38]} Kg5 {[%emt 0:00:07]} 62. Qg6+ {[%emt 0:00:30]} Kh4 {[%emt 0:00:05]} 63. Kd5 {[%emt 0:00:58]} Kh3 {[%emt 0:04:18]} 64. Ke6 {[%emt 0:00:55]} Qd4 {[%emt 0:02:05]} 65. Kf7 {[%emt 0:01:00]} Qd7+ {[%emt 0:00:05]} 66. Kg8 {[%emt 0:00:28]} Kh4 {[%emt 0:01:02]} 67. Kh7 {[%emt 0:02:44]} a5 {[%emt 0:00:39]} 68. Qe6 {[%emt 0:00:42]} Qd4 {[%emt 0:00:45]} 69. Kg6 {[%emt 0:00:35]} Qg4+ {[%emt 0:00:55]} 70. Kf7 {[%emt 0:00:01]} Kg5 {[%emt 0:01:01]} 71. Qe7+ {[%emt 0:00:22]} Kxf5 {[%emt 0:00:42]} 72. Qc5+ {[%emt 0:00:05]} Kf4 {[%emt 0:00:12]} 73. Qxc4+ {[%emt 0:00:07]} Kf3 {[%emt 0:00:32]} 74. Qxg4+ {[%emt 0:01:45]} Kxg4 {[%emt 0:00:04]} 75. Ke6 {[%emt 0:00:17]} Kf4 {[%emt 0:00:28]} 76. c4 {[%emt 0:00:10]} g5 {[%emt 0:00:04]} 77. c5 {[%emt 0:00:08]} g4 {[%emt 0:00:04]} 78. c6 {[%emt 0:00:03]} g3 {[%emt 0:00:03]} 79. c7 {[%emt 0:00:04]} g2 {[%emt 0:00:03]} 80. c8=Q {[%emt 0:00:08]} g1=Q {[%emt 0:00:05]} 81. Qc7+ {[%emt 0:00:43]} Ke4 {[%emt 0:01:29]} 82. Qxa5 {[%emt 0:01:14]} Qg6+ {[%emt 0:00:32]} 83. Kd7 {[%emt 0:00:09]} Qf7+ {[%emt 0:00:27]} 84. Kc6 {[%emt 0:00:29]} Qe8+ {[%emt 0:00:31]} 85. Kb7 {[%emt 0:01:39]} Kd3 {[%emt 0:02:15]} 86. Qf5+ {[%emt 0:00:50]} Kc3 {[%emt 0:00:31]} 87. Qf6+ {[%emt 0:00:47]} Kb4 {[%emt 0:00:37]} 88. Qb2+ {[%emt 0:00:30]} Ka5 {[%emt 0:00:34]} 89. Qc3+ {[%emt 0:00:27]} Kb5 {[%emt 0:00:43]} 90. Qb3+ {[%emt 0:00:25]} Ka5 {[%emt 0:00:09]} 91. Qc3+ {[%emt 0:00:37]} Kb5 {[%emt 0:00:22]} 92. a3 {[%emt 0:00:32]} 1/2-1/2

[Event "Czech Juniors Boys 2024"]
[Site "Jaromerice nad Rokytnou"]
[Date "2024.03.10"]
[Round "1.2"]
[White "Seidl, Jan"]
[Black "Jares, Michal"]
[Result "0-1"]
[ECO "E04"]
[WhiteElo "2230"]
[BlackElo "2347"]
[Annotator "RC"]
[PlyCount "108"]
[EventDate "2024.03.10"]
[EventType "tourn"]
[EventCountry "CZE"]
[SourceTitle "playchess.com"]
[Source "ChessBase"]
[SourceQuality "1"]
[TimeControl "40/5400+30:1800+30"]

1. d4 {[%emt 0:00:11]} d5 {[%emt 0:00:09]} 2. c4 {[%emt 0:00:16]} e6 {[%emt 0:00:02]} 3. Nf3 {[%emt 0:00:18]} Nf6 {[%emt 0:00:04]} 4. g3 {[%emt 0:00:13]} Bb4+ {[%emt 0:00:26]} 5. Nbd2 {[%emt 0:00:32]} dxc4 {[%emt 0:02:33]} 6. Bg2 {[%emt 0:00:13]} O-O {[%emt 0:00:19]} 7. O-O {[%emt 0:00:06]} b5 {[%emt 0:01:32]} 8. a4 {[%emt 0:00:06]} c6 {[%emt 0:00:39]} 9. Ne1 {[%emt 0:00:15]} Nd5 {[%emt 0:02:57]} 10. Nc2 {[%emt 0:01:01]} Be7 {[%emt 0:05:54]} 11. e4 {[%emt 0:00:31]} Nf6 {[%emt 0:11:06]} 12. e5 {[%emt 0:00:35]} Nd5 {[%emt 0:00:29]} 13. Ne4 {[%emt 0:00:12]} Nd7 {[%emt 0:01:18]} 14. axb5 {[%emt 0:00:23]} cxb5 {[%emt 0:00:20]} 15. Nc3 {[%emt 0:00:09]} Nxc3 {[%emt 0:03:05]} 16. bxc3 {[%emt 0:00:07]} Rb8 {[%emt 0:00:21]} 17. Rxa7 {[%emt 0:06:13]} Qb6 {[%emt 0:00:36]} 18. Ra1 {[%emt 0:01:58]} Bb7 {[%emt 0:03:59]} 19. Ba3 {[%emt 0:04:07]} Bxa3 {[%emt 0:01:07]} 20. Rxa3 {[%emt 0:00:27]} Ra8 {[%emt 0:02:31]} 21. Qb1 {[%emt 0:06:39]} Bxg2 {[%emt 0:02:02]} 22. Kxg2 {[%emt 0:00:48]} Qc6+ {[%emt 0:02:32]} 23. Kg1 {[%emt 0:05:58]} Nb6 {[%emt 0:00:54]} 24. Qb2 {[%emt 0:06:18]} Nd5 {[%emt 0:08:58]} 25. Rfa1 {[%emt 0:08:00]} Ra4 {[%emt 0:03:05]} 26. Rxa4 {[%emt 0:21:59]} bxa4 {[%emt 0:00:02]} 27. Rb1 {[%emt 0:02:01]} h5 {[%emt 0:01:55]} 28. h4 {[%emt 0:00:00]} Ra8 {[%emt 0:01:26]} 29. Na3 {[%emt 0:00:03]} g6 {[%emt 0:00:56]} 30. Qc2 {[%emt 0:00:45]} Ra6 {[%emt 0:10:26]} 31. Rb5 {[%emt 0:01:36]} Kg7 {[%emt 0:07:27]} 32. Rc5 {[%emt 0:05:55]} Qb7 {[%emt 0:01:34]} 33. Rxc4 {[%emt 0:01:23]} Qb3 {[%emt 0:00:36]} 34. Qc1 {[%emt 0:00:10]} Rb6 {[%emt 0:03:07]} 35. Rc8 {[%emt 0:01:10]} Rb8 {[%emt 0:16:43]} 36. Rxb8 {[%emt 0:00:16]} Qxb8 {[%emt 0:00:02]} 37. c4 {[%emt 0:04:09]} Ne7 {[%emt 0:01:24]} 38. Nb5 {[%emt 0:00:33]} Nf5 {[%emt 0:01:24]} 39. Qa3 {[%emt 0:03:50]} Qa8 {[%emt 0:02:08]} 40. Qd3 {[%emt 0:00:28]} Ne7 {[%emt 0:03:35]} 41. Kf1 {[%emt 0:44:40]} Qa5 {[%emt 0:07:27]} 42. Kg2 {[%emt 0:00:00]} Qe1 {[%emt 0:09:01]} 43. Qe3 {[%emt 0:00:00]} Qb4 {[%emt 0:02:56]} 44. Qd3 {[%emt 0:00:00]} Qe1 {[%emt 0:02:50]} 45. Nd6 {[%emt 0:00:00]} Nf5 {[%emt 0:00:21]} 46. c5 {[%emt 0:00:00]} Qa5 {[%emt 0:03:55]} 47. Nb5 {[%emt 0:00:00]} Qa6 {[%emt 0:02:32]} 48. Kh2 {[%emt 0:01:01]} a3 {[%emt 0:00:18]} 49. Qxa3 {[%emt 0:00:05]} Qxb5 {[%emt 0:00:01]} 50. Qf3 {[%emt 0:00:29]} Qc4 {[%emt 0:01:02]} 51. c6 {[%emt 0:00:04]} Qxd4 {[%emt 0:00:37]} 52. c7 {[%emt 0:00:05]} Qc5 {[%emt 0:00:56]} 53. Qb7 {[%emt 0:00:13]} Qxf2+ {[%emt 0:00:05]} 54. Qg2 {[%emt 0:00:10]} Qxg2+ {[%emt 0:00:40]} 0-1

[Event "Czech Juniors Boys 2024"]
[Site "Jaromerice nad Rokytnou"]
[Date "2024.03.10"]
[Round "1.3"]
[White "Soucek, Petr"]
[Black "Frank, Adam"]
[Result "1/2-1/2"]
[ECO "D30"]
[WhiteElo "2209"]
[BlackElo "2284"]
[Annotator "ChessBase"]
[PlyCount "109"]
[EventDate "2024.03.10"]
[EventType "tourn"]
[EventCountry "CZE"]
[SourceTitle "playchess.com"]
[Source "ChessBase"]
[SourceQuality "1"]
[TimeControl "40/5400+30:1800+30"]

1. d4 {[%emt 0:01:31]} d5 {[%emt 0:00:11]} 2. c4 {[%emt 0:00:08]} e6 {[%emt 0:00:10]} 3. Nf3 {[%emt 0:00:10]} c5 {[%emt 0:00:12]} 4. cxd5 {[%emt 0:00:10]} exd5 {[%emt 0:00:05]} 5. g3 {[%emt 0:00:10]} Nc6 {[%emt 0:00:11]} 6. Bg2 {[%emt 0:00:28]} Nf6 {[%emt 0:00:04]} 7. O-O {[%emt 0:00:21]} Be7 {[%emt 0:00:16]} 8. dxc5 {[%emt 0:00:07]} Bxc5 {[%emt 0:00:04]} 9. a3 {[%emt 0:00:07]} Ne4 {[%emt 0:00:03]} 10. Nfd2 {[%emt 0:00:16]} O-O {[%emt 0:00:08]} 11. Nb3 {[%emt 0:14:51]} Bb6 {[%emt 0:08:36]} 12. Nc3 {[%emt 0:00:40]} Nxc3 {[%emt 0:18:03]} 13. bxc3 {[%emt 0:00:05]} Re8 {[%emt 0:00:03]} 14. Ra2 {[%emt 0:15:39]} Qf6 {[%emt 0:05:26]} 15. Rd2 {[%emt 0:05:15]} Ne5 {[%emt 0:14:05]} 16. Bxd5 {[%emt 0:13:13]} Bh3 {[%emt 0:08:42]} 17. Bg2 {[%emt 0:00:30]} Bxg2 {[%emt 0:05:37]} 18. Kxg2 {[%emt 0:00:06]} Qc6+ {[%emt 0:04:29]} 19. Kg1 {[%emt 0:00:49]} Rac8 {[%emt 0:04:55]} 20. Nd4 {[%emt 0:05:59]} Qe4 {[%emt 0:01:43]} 21. Nf3 {[%emt 0:18:43]} Nxf3+ {[%emt 0:07:20]} 22. exf3 {[%emt 0:00:06]} Qc6 {[%emt 0:00:09]} 23. Rd3 {[%emt 0:02:02]} Rcd8 {[%emt 0:02:02]} 24. Kg2 {[%emt 0:02:48]} Rxd3 {[%emt 0:08:36]} 25. Qxd3 {[%emt 0:00:05]} Qa4 {[%emt 0:01:09]} 26. Qd1 {[%emt 0:04:19]} Qc4 {[%emt 0:02:57]} 27. Re1 {[%emt 0:00:29]} Re6 {[%emt 0:06:29]} 28. Rxe6 {[%emt 0:00:54]} Qxe6 {[%emt 0:00:51]} 29. Be3 {[%emt 0:00:09]} h5 {[%emt 0:00:18]} 30. Bxb6 {[%emt 0:00:26]} Qxb6 {[%emt 0:00:04]} 31. Qd7 {[%emt 0:02:03]} Qb3 {[%emt 0:01:43]} 32. Qe8+ {[%emt 0:02:52]} Kh7 {[%emt 0:00:05]} 33. Qe4+ {[%emt 0:00:18]} g6 {[%emt 0:00:04]} 34. Qb4 {[%emt 0:00:34]} Qd5 {[%emt 0:00:05]} 35. c4 {[%emt 0:01:47]} Qd7 {[%emt 0:00:55]} 36. h4 {[%emt 0:01:14]} b6 {[%emt 0:00:51]} 37. c5 {[%emt 0:00:34]} bxc5 {[%emt 0:00:44]} 38. Qxc5 {[%emt 0:00:06]} Kg8 {[%emt 0:00:32]} 39. Qa5 {[%emt 0:00:35]} Qd4 {[%emt 0:01:10]} 40. Qb5 {[%emt 0:00:29]} Qd6 {[%emt 0:00:36]} 41. a4 {[%emt 0:30:56]} a6 {[%emt 0:01:33]} 42. Qb7 {[%emt 0:00:00]} Qd3 {[%emt 0:01:31]} 43. a5 {[%emt 0:00:00]} Qc4 {[%emt 0:00:58]} 44. f4 {[%emt 0:00:00]} Kh7 {[%emt 0:01:51]} 45. Kh2 {[%emt 0:00:00]} Qa2 {[%emt 0:09:20]} 46. Qb6 {[%emt 0:00:00]} Qd2 {[%emt 0:03:29]} 47. Qc5 {[%emt 0:00:00]} Qd3 {[%emt 0:00:36]} 48. Qe7 {[%emt 0:00:00]} Qd5 {[%emt 0:01:09]} 49. Qe5 {[%emt 0:00:00]} Qd2 {[%emt 0:00:33]} 50. Kg2 {[%emt 0:00:00]} Qd3 {[%emt 0:00:05]} 51. Qf6 {[%emt 0:00:00]} Kg8 {[%emt 0:05:10]} 52. Qc6 {[%emt 0:00:00]} Kh7 {[%emt 0:01:13]} 53. Qf3 {[%emt 0:00:00]} Qb5 {[%emt 0:00:40]} 54. Qc3 {[%emt 0:00:00]} Qd5+ {[%emt 0:00:11]} 55. Kh2 {[%emt 0:00:00]} 1/2-1/2

[Event "Czech Juniors Boys 2024"]
[Site "Jaromerice nad Rokytnou"]
[Date "2024.03.10"]
[Round "1.4"]
[White "Vilimek, Vit"]
[Black "Hak, David"]
[Result "0-1"]
[ECO "B34"]
[WhiteElo "2061"]
[BlackElo "2283"]
[Annotator "ChessBase"]
[PlyCount "62"]
[EventDate "2024.03.10"]
[EventType "tourn"]
[EventCountry "CZE"]
[SourceTitle "playchess.com"]
[Source "ChessBase"]
[SourceQuality "1"]
[TimeControl "40/5400+30:1800+30"]

1. e4 {[%emt 0:00:02]} c5 {[%emt 0:00:06]} 2. Nf3 {[%emt 0:00:46]} Nc6 {[%emt 0:00:05]} 3. d4 {[%emt 0:00:04]} cxd4 {[%emt 0:00:04]} 4. Nxd4 {[%emt 0:00:04]} g6 {[%emt 0:00:08]} 5. Nc3 {[%emt 0:00:05]} Bg7 {[%emt 0:00:05]} 6. Nde2 {[%emt 0:00:04]} Nf6 {[%emt 0:00:56]} 7. g3 {[%emt 0:00:11]} b5 {[%emt 0:06:22]} 8. a3 {[%emt 0:05:22]} a5 {[%emt 0:10:31]} 9. Bg2 {[%emt 0:09:24]} Ba6 {[%emt 0:00:19]} 10. O-O {[%emt 0:06:56]} O-O {[%emt 0:01:25]} 11. Nd5 {[%emt 0:06:29]} d6 {[%emt 0:13:47]} 12. c3 {[%emt 0:21:37]} Nxd5 {[%emt 0:11:37]} 13. exd5 {[%emt 0:00:25]} Ne5 {[%emt 0:00:22]} 14. f4 {[%emt 0:10:54]} Qb6+ {[%emt 0:04:59]} 15. Kh1 {[%emt 0:05:34]} Nc4 {[%emt 0:07:27]} 16. Nd4 {[%emt 0:12:59]} b4 {[%emt 0:04:00]} 17. Re1 {[%emt 0:11:42]} Qc5 {[%emt 0:16:37]} 18. axb4 {[%emt 0:03:50]} axb4 {[%emt 0:00:08]} 19. Nb3 {[%emt 0:02:42]} Qb6 {[%emt 0:06:09]} 20. Nd4 {[%emt 0:00:01]} Bb7 {[%emt 0:04:41]} 21. Rxa8 {[%emt 0:00:31]} Rxa8 {[%emt 0:00:06]} 22. Qb3 {[%emt 0:01:04]} Na5 {[%emt 0:05:25]} 23. Qxb4 {[%emt 0:00:40]} Qxb4 {[%emt 0:02:21]} 24. cxb4 {[%emt 0:00:01]} Bxd4 {[%emt 0:00:26]} 25. bxa5 {[%emt 0:00:02]} Rxa5 {[%emt 0:00:19]} 26. Rxe7 {[%emt 0:01:13]} Ra1 {[%emt 0:00:29]} 27. Re1 {[%emt 0:00:02]} Bf2 {[%emt 0:00:36]} 28. Rf1 {[%emt 0:01:00]} Ba6 {[%emt 0:00:12]} 29. Be3 {[%emt 0:00:43]} Bxf1 {[%emt 0:00:21]} 30. Bxf2 {[%emt 0:00:06]} Bc4+ {[%emt 0:00:33]} 31. Bg1 {[%emt 0:00:04]} Rd1 {[%emt 0:00:09]} 0-1

[Event "Czech Juniors Boys 2024"]
[Site "Jaromerice nad Rokytnou"]
[Date "2024.03.10"]
[Round "1.5"]
[White "Skypala, Ondrej"]
[Black "Bohacek, Jan Andrej"]
[Result "1/2-1/2"]
[ECO "A13"]
[WhiteElo "2234"]
[BlackElo "2140"]
[Annotator "ChessBase"]
[PlyCount "61"]
[EventDate "2024.03.10"]
[EventType "tourn"]
[EventCountry "CZE"]
[SourceTitle "playchess.com"]
[Source "ChessBase"]
[SourceQuality "1"]
[TimeControl "40/5400+30:1800+30"]

1. c4 {[%emt 0:00:03]} e6 {[%emt 0:00:21]} 2. g3 {[%emt 0:00:07]} d5 {[%emt 0:00:13]} 3. Bg2 {[%emt 0:00:06]} Nf6 {[%emt 0:00:08]} 4. Nf3 {[%emt 0:00:06]} dxc4 {[%emt 0:00:06]} 5. Na3 {[%emt 0:00:07]} Bxa3 {[%emt 0:00:15]} 6. bxa3 {[%emt 0:00:08]} b5 {[%emt 0:01:01]} 7. Rb1 {[%emt 0:00:09]} a6 {[%emt 0:00:20]} 8. a4 {[%emt 0:03:22]} Bb7 {[%emt 0:01:21]} 9. Ba3 {[%emt 0:00:19]} Nbd7 {[%emt 0:01:52]} 10. Qc2 {[%emt 0:06:00]} c5 {[%emt 0:05:23]} 11. Bb2 {[%emt 0:00:06]} O-O {[%emt 0:12:55]} 12. axb5 {[%emt 0:01:11]} axb5 {[%emt 0:02:02]} 13. Bxf6 {[%emt 0:01:24]} Nxf6 {[%emt 0:01:51]} 14. Rxb5 {[%emt 0:00:19]} Be4 {[%emt 0:06:53]} 15. Qxc4 {[%emt 0:05:27]} Bd5 {[%emt 0:05:39]} 16. Qxc5 {[%emt 0:06:40]} Rxa2 {[%emt 0:08:51]} 17. O-O {[%emt 0:03:15]} Bxf3 {[%emt 0:04:03]} 18. Bxf3 {[%emt 0:00:11]} Rxd2 {[%emt 0:07:35]} 19. Kg2 {[%emt 0:14:12]} Qd4 {[%emt 0:11:55]} 20. h4 {[%emt 0:00:00]} Qxc5 {[%emt 0:05:55]} 21. Rxc5 {[%emt 0:00:00]} h5 {[%emt 0:06:54]} 22. Rb1 {[%emt 0:00:00]} g6 {[%emt 0:00:58]} 23. Rb7 {[%emt 0:00:00]} Rd7 {[%emt 0:01:08]} 24. Rb4 {[%emt 0:00:00]} Rfd8 {[%emt 0:03:22]} 25. Rcc4 {[%emt 0:08:06]} Rd2 {[%emt 0:02:27]} 26. Rb7 {[%emt 0:01:49]} R2d7 {[%emt 0:00:37]} 27. Rcc7 {[%emt 0:00:33]} Kg7 {[%emt 0:01:15]} 28. Bc6 {[%emt 0:00:40]} Rxc7 {[%emt 0:00:10]} 29. Rxc7 {[%emt 0:00:07]} Rd2 {[%emt 0:02:12]} 30. Kf3 {[%emt 0:00:55]} Rc2 {[%emt 0:01:01]} 31. Rc8 {[%emt 0:00:17]} 1/2-1/2

[Event "Czech Juniors Boys 2024"]
[Site "Jaromerice nad Rokytnou"]
[Date "2024.03.10"]
[Round "1.6"]
[White "Paseka, Matyas"]
[Black "Bokhnak, Timofey"]
[Result "1-0"]
[ECO "C18"]
[WhiteElo "2233"]
[BlackElo "2241"]
[Annotator "ChessBase"]
[PlyCount "70"]
[EventDate "2024.03.10"]
[EventType "tourn"]
[EventCountry "CZE"]
[SourceTitle "playchess.com"]
[Source "ChessBase"]
[SourceQuality "1"]
[TimeControl "40/5400+30:1800+30"]

1. e4 {[%emt 0:00:04]} e6 {[%emt 0:02:07]} 2. d4 {[%emt 0:00:31]} d5 {[%emt 0:00:10]} 3. Nc3 {[%emt 0:00:56]} Bb4 {[%emt 0:02:04]} 4. e5 {[%emt 0:00:22]} c5 {[%emt 0:00:14]} 5. a3 {[%emt 0:00:15]} Bxc3+ {[%emt 0:01:27]} 6. bxc3 {[%emt 0:00:13]} Qa5 {[%emt 0:00:10]} 7. Bd2 {[%emt 0:03:18]} Qa4 {[%emt 0:00:54]} 8. Qb1 {[%emt 0:06:55]} c4 {[%emt 0:07:32]} 9. h4 {[%emt 0:01:02]} Nc6 {[%emt 0:04:56]} 10. h5 {[%emt 0:01:26]} h6 {[%emt 0:09:21]} 11. g4 {[%emt 0:09:57]} Bd7 {[%emt 0:05:54]} 12. Ne2 {[%emt 0:06:38]} O-O-O {[%emt 0:03:30]} 13. Ng3 {[%emt 0:00:26]} Rf8 {[%emt 0:03:24]} 14. f4 {[%emt 0:11:13]} f6 {[%emt 0:03:25]} 15. Be2 {[%emt 0:00:28]} Nge7 {[%emt 0:04:38]} 16. Be3 {[%emt 0:00:57]} Qa5 {[%emt 0:05:03]} 17. Qb2 {[%emt 0:01:22]} Qc7 {[%emt 0:19:05]} 18. Kd2 {[%emt 0:11:53]} f5 {[%emt 0:06:23]} 19. Rhg1 {[%emt 0:08:47]} Rhg8 {[%emt 0:01:44]} 20. Rg2 {[%emt 0:02:38]} g5 {[%emt 0:02:45]} 21. hxg6 {[%emt 0:00:54]} fxg4 {[%emt 0:03:10]} 22. Bxg4 {[%emt 0:02:15]} Rxg6 {[%emt 0:01:50]} 23. Nh5 {[%emt 0:04:17]} Nf5 {[%emt 0:01:53]} 24. Nf6 {[%emt 0:07:22]} Nxe3 {[%emt 0:05:06]} 25. Kxe3 {[%emt 0:00:11]} h5 {[%emt 0:02:37]} 26. Nxh5 {[%emt 0:08:01]} Ne7 {[%emt 0:02:08]} 27. Rag1 {[%emt 0:02:45]} a5 {[%emt 0:01:39]} 28. Nf6 {[%emt 0:01:06]} Rgxf6 {[%emt 0:00:05]} 29. exf6 {[%emt 0:00:06]} Rxf6 {[%emt 0:00:01]} 30. Rf1 {[%emt 0:01:15]} Qd6 {[%emt 0:00:40]} 31. Qc1 {[%emt 0:04:48]} Ng6 {[%emt 0:00:41]} 32. Rgf2 {[%emt 0:00:46]} Kc7 {[%emt 0:00:34]} 33. Ke2 {[%emt 0:00:30]} Ba4 {[%emt 0:01:17]} 34. f5 {[%emt 0:01:49]} Qg3 {[%emt 0:00:18]} 35. Qg5 {[%emt 0:01:45]} Rxf5 {[%emt 0:01:35]} 1-0

[Event "Czech Juniors Boys 2024"]
[Site "Jaromerice nad Rokytnou"]
[Date "2024.03.10"]
[Round "2.1"]
[White "Lang, Simon"]
[Black "Bokhnak, Timofey"]
[Result "0-1"]
[ECO "B46"]
[WhiteElo "2043"]
[BlackElo "2241"]
[Annotator "ChessBase"]
[PlyCount "60"]
[EventDate "2024.03.10"]
[EventType "tourn"]
[EventCountry "CZE"]
[SourceTitle "playchess.com"]
[Source "ChessBase"]
[SourceQuality "1"]
[TimeControl "40/5400+30:1800+30"]

1. e4 {[%emt 0:00:37]} c5 {[%emt 0:00:29]} 2. Nf3 {[%emt 0:00:48]} e6 {[%emt 0:00:13]} 3. d4 {[%emt 0:00:29]} cxd4 {[%emt 0:00:06]} 4. Nxd4 {[%emt 0:00:08]} Nc6 {[%emt 0:00:09]} 5. Nc3 {[%emt 0:01:26]} a6 {[%emt 0:00:13]} 6. Nxc6 {[%emt 0:05:00]} bxc6 {[%emt 0:00:07]} 7. Bd3 {[%emt 0:01:04]} d5 {[%emt 0:00:18]} 8. O-O {[%emt 0:02:12]} Nf6 {[%emt 0:01:54]} 9. Qe2 {[%emt 0:14:44]} Be7 {[%emt 0:02:10]} 10. b3 {[%emt 0:01:25]} O-O {[%emt 0:02:44]} 11. Bb2 {[%emt 0:00:27]} Re8 {[%emt 0:04:30]} 12. e5 {[%emt 0:05:30]} Nd7 {[%emt 0:00:20]} 13. Qh5 {[%emt 0:09:26]} g6 {[%emt 0:08:54]} 14. Qe2 {[%emt 0:00:36]} Qc7 {[%emt 0:00:26]} 15. Rae1 {[%emt 0:01:48]} Bb7 {[%emt 0:08:03]} 16. f4 {[%emt 0:01:48]} c5 {[%emt 0:00:25]} 17. f5 {[%emt 0:13:24]} gxf5 {[%emt 0:27:46]} 18. Qh5 {[%emt 0:18:28]} d4 {[%emt 0:07:05]} 19. Bxf5 {[%emt 0:14:35]} exf5 {[%emt 0:00:24]} 20. Rxf5 {[%emt 0:00:07]} Qc6 {[%emt 0:08:27]} 21. Re4 {[%emt 0:01:47]} Kh8 {[%emt 0:05:05]} 22. Rg4 {[%emt 0:01:40]} Qe6 {[%emt 0:05:10]} 23. h3 {[%emt 0:02:55]} Rg8 {[%emt 0:06:16]} 24. Rxf7 {[%emt 0:01:13]} Nf6 {[%emt 0:01:33]} 25. Rxf6 {[%emt 0:00:45]} Bxf6 {[%emt 0:00:10]} 26. exf6 {[%emt 0:00:06]} Rxg4 {[%emt 0:00:30]} 27. hxg4 {[%emt 0:00:05]} Qe3+ {[%emt 0:02:45]} 28. Kh2 {[%emt 0:00:15]} dxc3 {[%emt 0:01:33]} 29. Ba3 {[%emt 0:00:20]} Qf4+ {[%emt 0:01:11]} 30. Kg1 {[%emt 0:00:11]} Qg3 {[%emt 0:01:29]} 0-1

[Event "Czech Juniors Boys 2024"]
[Site "Jaromerice nad Rokytnou"]
[Date "2024.03.10"]
[Round "2.2"]
[White "Bohacek, Jan Andrej"]
[Black "Paseka, Matyas"]
[Result "1-0"]
[ECO "E62"]
[WhiteElo "2140"]
[BlackElo "2233"]
[Annotator "ChessBase"]
[PlyCount "48"]
[EventDate "2024.03.10"]
[EventType "tourn"]
[EventCountry "CZE"]
[SourceTitle "playchess.com"]
[Source "ChessBase"]
[SourceQuality "1"]
[TimeControl "40/5400+30:1800+30"]

1. d4 {[%emt 0:00:18]} Nf6 {[%emt 0:00:08]} 2. c4 {[%emt 0:00:19]} d6 {[%emt 0:01:47]} 3. Nf3 {[%emt 0:01:20]} g6 {[%emt 0:01:15]} 4. g3 {[%emt 0:00:30]} Bg7 {[%emt 0:02:31]} 5. Bg2 {[%emt 0:00:11]} O-O {[%emt 0:00:09]} 6. Nc3 {[%emt 0:00:41]} Nc6 {[%emt 0:00:13]} 7. O-O {[%emt 0:01:03]} Bf5 {[%emt 0:09:27]} 8. b3 {[%emt 0:09:10]} Ne4 {[%emt 0:03:25]} 9. Nd5 {[%emt 0:06:17]} Be6 {[%emt 0:22:41]} 10. Bb2 {[%emt 0:15:38]} Bxd5 {[%emt 0:05:47]} 11. cxd5 {[%emt 0:00:11]} Nb4 {[%emt 0:00:31]} 12. Nd2 {[%emt 0:07:37]} Nf6 {[%emt 0:11:34]} 13. e4 {[%emt 0:02:53]} c5 {[%emt 0:01:51]} 14. Nc4 {[%emt 0:09:41]} b5 {[%emt 0:11:09]} 15. Ne3 {[%emt 0:02:04]} Nd7 {[%emt 0:00:38]} 16. a3 {[%emt 0:20:24]} Na6 {[%emt 0:00:16]} 17. Nc2 {[%emt 0:00:57]} Nb6 {[%emt 0:11:20]} 18. Qe2 {[%emt 0:06:20]} Qd7 {[%emt 0:04:24]} 19. a4 {[%emt 0:02:33]} bxa4 {[%emt 0:03:35]} 20. Qxa6 {[%emt 0:02:23]} axb3 {[%emt 0:00:07]} 21. Ne3 {[%emt 0:03:16]} Bxd4 {[%emt 0:07:32]} 22. Rfb1 {[%emt 0:02:09]} Qc8 {[%emt 0:00:30]} 23. Bf1 {[%emt 0:01:36]} Bxe3 {[%emt 0:00:34]} 24. fxe3 {[%emt 0:00:12]} Qg4 {[%emt 0:00:00]} 1-0